bitfinex/quotes_ETHUSD_20250114
["timestamp","ask_amount","ask_price","bid_price","bid_amount"]
[1736868697893,11.451291,3205.1,3203.7,0.7555]
[1736868698291,11.451291,3205.1,3203.7,3.87686]
[1736868699108,11.451291,3205.1,3203.7,0.7555]
[1736868700285,0.824,3205.1,3203.5,3.12154]
[1736868700480,3.11988,3205.3,3204.4,0.7555]
[1736868700685,0.63553189,3205.5,3204.7,3.1204]
[1736868700921,3.11954,3205.6,3204.7,3.1204]
[1736868701115,3.957271,3205.7,3204.8,3.1203]
[1736868701316,0.55,3205.6,3204.4,0.7555]
[1736868701504,0.55,3205.3,3204.5,3.1206]
[1736868701907,0.55,3205.1,3204.4,0.7555]
[1736868702106,11.873284,3205.1,3204.0,0.7555]
[1736868702414,11.873284,3205.1,3203.6,3.12142]
[1736868702719,11.873284,3205.1,3203.5,0.7555]
[1736868703121,11.873284,3205.1,3205.0,106.5726]
[1736868703333,11.873284,3205.1,3205.0,86.39438678]
[1736868705128,12.48899086,3205.1,3205.0,81.71420678]
[1736868709544,0.61570686,3205.1,3205.0,81.71420678]
[1736868709836,1.29262798,3205.9,3205.0,82.46970678]
[1736868709837,4.41191798,3205.9,3205.0,82.46970678]
[1736868710056,1.29262798,3205.9,3205.0,82.46970678]
[1736868710201,0.42247917,3205.9,3205.5,3.11959]
[1736868710399,0.42247917,3205.9,3205.1,3.87552]
[1736868710400,0.42247917,3205.9,3205.6,3.11952]
[1736868710630,3.11862,3206.6,3205.6,0.7555]
[1736868710832,4.40534712,3207.9,3205.3,3.0]
[1736868710833,0.61468617,3206.8,3205.7,3.0]
[1736868711048,0.824,3207.3,3206.3,0.7555]
[1736868711049,3.11792,3207.3,3206.3,0.7555]
[1736868711212,3.11771,3207.5,3206.4,3.11867]
[1736868711552,3.1177,3207.5,3206.4,3.11867]
[1736868711715,0.62162719,3207.4,3206.3,0.7555]
[1736868711918,1.28804712,3207.9,3207.0,3.11815]
[1736868711919,0.42247917,3207.9,3207.0,3.11815]
[1736868712122,0.42247917,3207.9,3207.1,0.7555]
[1736868712345,0.15907333,3208.5,3207.1,0.7555]
[1736868712510,0.55,3208.2,3207.1,3.87356]
[1736868712707,0.63923656,3208.5,3207.4,3.11773]
[1736868712912,3.957271,3209.0,3207.2,3.0]
[1736868713153,3.11663,3208.6,3207.4,3.11779]
[1736868713545,3.55,3208.9,3207.2,3.0]
[1736868713770,3.11644,3208.8,3207.2,3.11798]
[1736868713963,0.55,3208.7,3207.6,3.11756]
[1736868714255,0.824,3209.2,3207.1,1.37841483]
[1736868714410,3.93973,3209.6,3208.1,3.11709]
[1736868714606,3.93973,3209.6,3207.8,3.0]
[1736868714607,1.44172439,3209.6,3207.8,3.0]
[1736868714812,3.11585,3209.4,3208.1,3.11707]
[1736868715009,0.55,3209.3,3208.1,3.11707]
[1736868715206,0.55,3209.3,3207.7,4.36062919]
[1736868715207,3.0,3209.3,3207.8,3.0]
[1736868715436,0.55,3209.2,3208.3,3.87237]
[1736868715713,3.93904,3210.3,3208.3,0.7555]
[1736868715920,3.11535,3210.0,3208.4,3.11681]
[1736868716133,3.11537,3209.9,3208.6,3.11653]
[1736868716333,3.11556,3209.7,3208.6,3.11653]
[1736868716546,3.11556,3209.7,3208.5,3.11669]
[1736868716734,3.0,3209.9,3208.6,3.11652]
[1736868716930,3.726989,3209.8,3208.6,3.11652]
[1736868717340,0.611529,3209.8,3208.6,3.11652]
[1736868717523,3.11549,3209.8,3208.3,3.7555]
[1736868717710,0.55,3209.7,3208.3,3.7555]
[1736868718115,0.55,3209.7,3208.6,3.1166]
[1736868718723,0.55,3209.6,3208.4,3.11681]
[1736868719016,0.55,3209.8,3208.3,3.7555]
[1736868719233,0.916536,3209.8,3208.3,6.87233]
[1736868719841,0.55,3209.6,3208.5,3.11662]
[1736868720036,0.55,3209.4,3208.3,0.7555]
[1736868720376,0.366536,3209.8,3208.3,0.7555]
[1736868720528,0.55,3209.7,3208.3,0.7555]
[1736868720728,6.509024,3210.2,3208.5,3.11671]
[1736868721026,0.55,3209.9,3208.5,3.11671]
[1736868721257,0.55,3209.6,3208.5,3.11671]
[1736868721524,0.03894867,3209.6,3208.3,3.7555]
[1736868721724,0.55,3209.4,3208.3,0.7555]
[1736868722039,3.66559,3209.7,3208.4,3.11679]
[1736868722244,0.366559,3209.6,3208.4,4.365255]
[1736868722537,0.55,3209.3,3208.3,0.7555]
[1736868722751,0.55,3209.2,3208.3,0.7555]
[1736868722948,0.55,3209.1,3208.3,0.7555]
[1736868723260,0.55,3209.3,3208.3,0.7555]
[1736868723448,0.55,3209.3,3208.3,3.87239]
[1736868723759,0.55,3209.4,3208.3,0.7555]
[1736868724059,0.55,3209.2,3208.3,0.7555]
[1736868724436,0.55,3209.3,3208.3,3.8724]
[1736868724826,0.55,3209.6,3208.3,0.7555]
[1736868725150,0.55,3209.6,3208.5,3.11669]
[1736868725151,0.37045736,3209.5,3208.5,3.11669]
[1736868725347,3.11567,3209.6,3208.5,3.11669]
[1736868725728,0.55,3209.5,3208.3,0.7555]
[1736868726262,0.55,3209.9,3208.3,0.7555]
[1736868726466,3.55,3209.6,3208.5,3.11666]
[1736868726641,6.66569,3209.6,3208.5,3.11666]
[1736868726838,7.332259,3209.6,3208.5,3.11666]
[1736868727255,0.55,3209.4,3208.3,0.7555]
[1736868727444,1.216569,3209.6,3208.3,0.7555]
[1736868727445,0.55,3209.2,3208.3,0.7555]
[1736868727831,0.55,3209.1,3208.3,0.7555]
[1736868728569,0.55,3209.0,3208.3,0.7555]
[1736868728757,0.55,3208.9,3208.3,0.7555]
[1736868729068,0.55,3208.7,3208.3,0.7555]
[1736868729264,3.0,3209.7,3208.4,3.11681]
[1736868729466,3.0,3209.7,3208.5,3.11671]
[1736868729673,3.11544,3209.9,3208.7,3.11643]
[1736868729832,3.11547,3209.8,3208.7,3.11643]
[1736868730035,3.66556,3209.7,3208.7,3.11643]
[1736868730288,3.66556,3209.7,3208.8,3.11641]
[1736868730289,0.55,3209.7,3208.8,3.11641]
[1736868730450,3.11512,3210.2,3209.1,3.11611]
[1736868730451,3.1151,3210.2,3209.1,3.11611]
[1736868730654,3.11484,3210.5,3209.2,3.11604]
[1736868730848,3.11484,3210.5,3209.1,0.7812]
[1736868730849,0.8232,3210.7,3209.3,3.11586]
[1736868731165,3.11489,3210.4,3209.3,3.11586]
[1736868731366,0.45619974,3210.6,3209.3,3.11586]
[1736868731673,0.45619974,3210.6,3209.1,0.7812]
[1736868731674,0.55,3210.2,3209.1,3.89729]
[1736868731877,3.66508,3210.2,3209.1,3.89729]
[1736868732078,0.55,3210.3,3209.2,3.11602]
[1736868732495,0.55,3210.1,3209.2,3.11602]
[1736868732841,0.366509,3210.1,3209.1,0.7812]
[1736868733140,0.55,3209.7,3209.1,0.7812]
[1736868733874,3.11547,3209.8,3209.1,0.7812]
[1736868733875,0.8232,3209.9,3209.1,0.7812]
[1736868734044,0.55,3209.2,3208.4,0.7812]
[1736868734371,0.55,3209.3,3208.4,3.7812]
[1736868734874,3.11592,3209.4,3208.5,3.11668]
[1736868734875,0.55,3209.4,3208.5,3.11668]
[1736868735060,0.55,3209.5,3208.4,0.7812]
[1736868735261,3.11514,3210.2,3209.1,3.11608]
[1736868735465,0.8232,3210.3,3209.2,4.71325068]
[1736868735466,3.11519,3210.1,3209.2,4.71325068]
[1736868735671,3.9382,3210.3,3209.2,7.82928068]
[1736868735847,3.115,3210.3,3209.3,3.11592]
[1736868736242,3.8294,3210.7,3209.2,4.71325068]
[1736868736243,3.944,3210.7,3209.6,3.11556]
[1736868736460,3.1144,3210.9,3209.8,7.05731068]
[1736868736662,3.11422,3211.1,3210.1,3.94195068]
[1736868736933,3.11422,3211.1,3210.2,0.7713]
[1736868737478,3.11432,3211.0,3210.2,0.7713]
[1736868738360,0.62432904,3211.4,3210.2,0.7713]
[1736868738561,0.55,3210.8,3210.2,0.7713]
[1736868739085,2.98077271,3214.2,3210.2,0.7713]
[1736868739086,0.8294,3211.6,3210.2,0.7713]
[1736868739387,0.03892689,3211.5,3210.2,0.7713]
[1736868739549,3.11429,3211.1,3210.2,0.7713]
[1736868739752,3.425719,3211.1,3210.2,0.7713]
[1736868739966,0.55,3211.0,3210.2,0.7713]
[1736868740374,0.55,3211.0,3210.2,3.88637]
[1736868740574,3.0,3211.4,3210.2,3.88637]
[1736868741176,3.11442,3210.9,3210.2,0.7713]
[1736868741383,3.11465,3210.7,3210.2,0.7713]
[1736868741563,0.55,3210.6,3210.2,0.7713]
[1736868741767,3.66467,3210.7,3209.8,9.6013]
[1736868742366,0.55,3210.5,3209.8,9.6013]
[1736868743048,0.67666132,3210.9,3209.8,0.7713]
[1736868743380,0.8294,3210.4,3209.4,0.7713]
[1736868743544,0.0389445,3210.3,3209.4,0.7713]
[1736868743886,0.55,3209.5,3209.0,0.7713]
[1736868744084,3.11565,3209.6,3207.1,3.14313548]
[1736868744085,0.55,3209.3,3208.5,0.7713]
[1736868744291,0.55,3209.1,3208.0,0.7713]
[1736868744451,0.55,3208.9,3208.0,0.7713]
[1736868744786,0.58895791,3209.0,3208.0,0.7713]
[1736868744787,0.55,3209.0,3208.0,0.7713]
[1736868744949,1.216611,3209.0,3208.0,0.7713]
[1736868745575,0.55,3208.5,3207.7,1.248718]
[1736868745781,0.55,3208.3,3207.6,0.7713]
[1736868745967,0.55,3207.8,3207.2,0.7713]
[1736868746176,0.55,3208.0,3207.2,0.7713]
[1736868746486,3.0,3208.4,3207.4,3.11778]
[1736868746783,0.55,3208.3,3207.2,0.7713]
[1736868746975,0.58896557,3208.3,3207.2,0.7713]
[1736868747373,3.66788,3207.3,3207.2,0.7713]
[1736868747579,0.55,3207.2,3207.1,0.32573548]
[1736868747760,0.55,3207.2,3206.8,0.7713]
[1736868748164,3.118,3207.2,3206.8,0.7713]
[1736868748376,0.55,3207.4,3206.3,0.7713]
[1736868748584,0.55,3207.1,3206.3,0.7713]
[1736868749891,0.61126814,3207.8,3206.3,0.7713]
[1736868750069,3.11769,3207.6,3206.4,3.11866]
[1736868750272,0.61126814,3207.8,3206.6,3.11851]
[1736868750273,0.55,3207.5,3206.6,3.11851]
[1736868750797,0.55,3207.6,3206.6,3.11852]
[1736868750994,3.11761,3207.6,3206.6,3.11852]
[1736868751289,0.62530452,3208.0,3206.4,0.7713]
[1736868751463,3.1168,3208.5,3207.3,3.1178]
[1736868751667,3.1168,3208.5,3207.3,3.11783]
[1736868751668,3.42848,3208.5,3207.3,3.11783]
[1736868751869,3.11682,3208.4,3207.3,3.11783]
[1736868752075,3.11665,3208.6,3207.4,3.1177]
[1736868752251,0.8294,3208.9,3207.7,0.7713]
[1736868752451,3.11665,3208.6,3207.7,0.7713]
[1736868752656,0.86836297,3208.9,3207.7,0.7713]
[1736868752657,3.11643,3208.8,3207.7,0.7713]
[1736868752857,3.11643,3208.8,3207.8,3.11738]
[1736868753058,3.55,3208.9,3207.7,0.7713]
[1736868753260,0.55,3208.6,3207.7,0.7713]
[1736868753458,3.1162,3209.1,3207.7,0.7713]
[1736868753697,3.11651,3208.8,3207.7,3.88879]
[1736868753878,3.66654,3208.7,3207.7,3.88879]
[1736868754083,3.66654,3208.7,3207.7,0.7713]
[1736868754280,0.0389607,3208.6,3207.7,0.7713]
[1736868754578,0.55,3208.3,3207.7,0.7713]
[1736868754776,0.55,3208.9,3207.7,0.7713]
[1736868754979,3.11643,3208.8,3207.8,3.11733]
[1736868755171,0.55,3208.7,3207.8,3.11733]
[1736868755895,3.11528,3210.0,3207.7,0.7713]
[1736868756095,3.11596,3209.3,3208.4,0.7732]
[1736868756389,0.55,3209.5,3208.4,0.7732]
[1736868756577,3.1165,3208.8,3208.4,0.7732]
[1736868756778,0.55,3208.7,3207.8,0.7732]
[1736868756995,3.66658,3208.7,3207.8,3.7732]
[1736868757199,0.55,3208.4,3207.8,0.7732]
[1736868757399,3.70589208,3208.3,3207.8,0.7732]
[1736868757602,0.55,3208.3,3207.8,0.7732]
[1736868757778,0.55,3208.4,3207.8,0.7732]
[1736868757980,3.9393,3208.7,3207.3,3.11787]
[1736868757981,0.55,3208.2,3207.3,0.7732]
[1736868758177,0.55,3207.8,3207.3,0.7732]
[1736868759315,3.11744,3207.8,3207.3,0.7732]
[1736868759480,0.55,3207.7,3207.3,0.7732]
[1736868759687,3.6675,3207.7,3206.9,0.7732]
[1736868759888,0.55,3208.0,3206.9,0.7732]
[1736868760414,0.55,3207.8,3206.9,3.89145]
[1736868760742,3.0,3208.3,3207.2,3.1179]
[1736868760922,3.0,3208.3,3206.9,0.7732]
[1736868760923,3.0,3208.3,3207.3,3.11787]
[1736868761223,0.55,3208.2,3207.3,3.11787]
[1736868761417,0.55,3207.8,3206.9,3.89145]
[1736868761583,0.55,3207.8,3206.9,0.7732]
[1736868761986,3.11723,3208.0,3206.9,0.7732]
[1736868762184,0.55,3207.6,3206.9,0.7732]
[1736868762723,0.55,3207.1,3206.2,0.7732]
[1736868762906,3.11701,3208.2,3206.8,4.353576]
[1736868763098,0.8227,3208.3,3207.3,3.11787]
[1736868763619,0.55,3208.2,3207.3,3.11787]
[1736868763818,0.55,3208.2,3207.0,3.0]
[1736868764037,3.66702,3208.2,3207.0,3.0]
[1736868764247,3.66702,3208.2,3207.2,3.11794]
[1736868764393,3.66702,3208.2,3207.0,3.0]
[1736868764394,3.11739,3207.9,3206.9,0.7732]
[1736868764599,0.55,3207.8,3206.9,3.89147]
[1736868765240,0.55,3207.7,3206.9,0.7732]
[1736868765728,0.55,3207.9,3206.9,3.89142]
[1736868765937,0.55,3207.9,3207.0,3.11816]
[1736868766429,3.566022,3208.2,3206.9,0.7732]
[1736868766630,3.11686,3208.4,3207.4,3.11769]
[1736868767035,3.0,3208.5,3207.3,3.94870643]
[1736868767330,0.61773504,3208.6,3207.9,3.11722]
[1736868767531,0.55,3208.5,3207.9,3.11722]
[1736868767828,3.11692,3208.3,3207.4,3.93177]
[1736868768031,3.7060559,3208.2,3207.4,0.814]
[1736868768267,3.7060559,3208.2,3206.8,3.11835]
[1736868768268,0.5889659,3208.2,3206.8,0.814]
[1736868768437,3.11748,3207.8,3206.8,3.9323]
[1736868768597,0.55,3207.7,3206.8,0.814]
[1736868768803,0.55,3207.4,3206.8,0.814]
[1736868768996,0.916748,3207.7,3206.8,0.814]
[1736868768997,0.366748,3207.7,3206.8,0.814]
[1736868769338,0.58897476,3208.2,3206.8,0.814]
[1736868770022,0.55,3207.5,3206.8,0.814]
[1736868770336,3.66742,3207.8,3206.8,3.93237]
[1736868770711,0.55,3207.6,3206.8,3.93237]
[1736868770911,0.58897477,3207.6,3206.8,0.814]
[1736868771113,0.55,3207.5,3206.0,0.814]
[1736868771444,0.55,3207.2,3206.4,3.11875]
[1736868771798,3.66771,3207.5,3206.2,0.814]
[1736868772036,3.11754,3207.7,3206.4,0.814]
[1736868772241,3.11754,3207.7,3206.8,3.11836]
[1736868772607,0.55,3207.6,3206.8,3.11836]
[1736868772921,0.58897478,3207.9,3206.4,0.814]
[1736868773143,0.55,3207.3,3206.5,3.11863]
[1736868773303,3.11764,3207.6,3206.6,3.11851]
[1736868773698,0.55,3207.5,3206.4,0.814]
[1736868773930,0.55,3207.3,3206.4,3.93276]
[1736868774436,0.55,3207.2,3206.4,3.93276]
[1736868774804,0.55,3207.1,3206.4,0.814]
[1736868775004,0.55,3207.1,3206.2,6.11892]
[1736868775005,3.11849,3206.7,3205.7,0.814]
[1736868775206,0.55,3206.2,3205.7,0.814]
[1736868775656,0.8424,3206.6,3205.7,0.814]
[1736868775657,0.55,3206.4,3205.7,0.814]
[1736868776739,0.8424,3206.6,3205.7,0.814]
[1736868776945,3.0,3206.8,3205.7,3.9334]
[1736868777109,3.11829,3206.9,3206.0,3.11911]
[1736868777309,0.393829,3206.9,3205.8,3.11926]
[1736868777526,0.55,3207.0,3205.8,3.11926]
[1736868777964,0.03898587,3207.0,3205.7,0.814]
[1736868778265,1.44559152,3207.3,3205.7,3.93334]
[1736868778552,0.55,3206.6,3205.7,3.93334]
[1736868778759,0.55,3206.6,3205.8,3.11929]
[1736868778906,0.55,3206.3,3205.7,0.814]
[1736868779421,3.11877,3206.4,3205.7,0.814]
[1736868779620,0.82,3206.6,3205.2,0.8039]
[1736868779621,3.15787727,3206.3,3205.2,0.8039]
[1736868779822,3.11911,3206.1,3205.2,0.8039]
[1736868780022,0.55,3206.0,3205.2,0.8039]
[1736868780217,0.55,3205.8,3205.2,0.8039]
[1736868780417,0.55,3205.8,3205.0,81.71420678]
[1736868780418,0.03899517,3205.7,3205.0,81.71420678]
[1736868780619,0.55,3205.6,3205.0,81.71420678]
[1736868781146,3.11975,3205.4,3205.0,81.71420678]
[1736868781314,0.55,3205.8,3205.0,81.71420678]
[1736868781509,0.55,3205.2,3205.0,81.71420678]
[1736868781910,3.56026998,3205.7,3205.0,81.71420678]
[1736868781911,3.67002,3205.1,3205.0,81.71420678]
[1736868782320,6.67002,3205.1,3205.0,81.71420678]
[1736868784168,8.29921393,3205.1,3205.0,64.81101934]
[1736868784377,8.29921393,3205.1,3205.0,63.25095934]
[1736868784563,8.29921393,3205.1,3205.0,61.69089934]
[1736868787106,8.29921393,3205.1,3205.0,58.57077934]
[1736868787707,8.29921393,3205.1,3205.0,52.33053934]
[1736868788908,8.29921393,3205.1,3205.0,52.20226181]
[1736868789496,3.73497928,3205.3,3205.0,52.20226181]
[1736868789697,3.93847,3205.5,3205.0,52.20226181]
[1736868789900,3.11975,3205.4,3205.0,52.20226181]
[1736868790210,0.8188,3205.5,3205.0,52.20226181]
[1736868790385,3.12002,3205.2,3205.0,52.20226181]
[1736868790574,3.67002,3205.1,3205.0,52.20226181]
[1736868790774,4.037022,3205.1,3205.0,52.20226181]
[1736868791015,7.855822,3205.1,3205.0,52.20226181]
[1736868791602,7.855822,3205.1,3205.0,44.40196181]
[1736868791806,7.855822,3205.1,3205.0,42.63028166]
[1736868794126,7.855822,3205.1,3205.0,34.65423779]
[1736868794416,7.855822,3205.1,3205.0,24.5945778]
[1736868795303,7.855822,3205.1,3205.0,21.4744578]
[1736868796336,7.305822,3205.1,3205.0,21.4744578]
[1736868796818,4.855822,3205.1,3205.0,21.4744578]
[1736868796984,4.48882,3205.1,3205.0,21.4744578]
[1736868797313,3.12002,3205.1,3205.0,21.4744578]
[1736868797541,3.11897,3206.2,3205.0,21.4744578]
[1736868797542,3.11933,3205.9,3205.1,0.7987]
[1736868797882,3.11938,3205.8,3205.1,0.7987]
[1736868798198,3.11938,3205.8,3205.0,21.4744578]
[1736868798199,3.11991,3205.3,3205.0,21.4744578]
[1736868798375,0.55,3205.2,3205.0,21.4744578]
[1736868798579,0.55,3205.3,3205.0,21.4744578]
[1736868799081,3.11599,3209.3,3205.0,21.4744578]
[1736868799082,3.89097,3206.1,3205.0,23.70177358]
[1736868799283,3.11907,3206.1,3205.0,23.70177358]
[1736868799589,0.55,3205.7,3205.0,23.70177358]
[1736868799801,3.66953,3205.7,3205.0,21.4744578]
[1736868799976,0.55,3205.6,3205.0,21.4744578]
[1736868800381,0.58900091,3205.5,3205.0,21.4744578]
[1736868800583,3.11959,3205.6,3205.0,21.4744578]
[1736868800584,0.38464487,3205.6,3205.0,21.4744578]
[1736868800780,0.03900091,3205.5,3205.0,21.4744578]
[1736868801439,6.12002,3205.1,3205.0,21.4744578]
[1736868801615,6.732022,3205.1,3205.0,21.4744578]
[1736868803709,7.282022,3205.1,3205.0,21.4744578]
[1736868804617,7.282022,3205.1,3205.0,21.3546978]
[1736868804815,8.053922,3205.1,3205.0,16.6745178]
[1736868805119,8.053922,3205.1,3205.0,13.5543978]
[1736868805304,8.053922,3205.1,3205.0,5.06884894]
[1736868805508,12.01265843,3205.1,3205.0,5.06884894]
[1736868805707,12.01265843,3205.1,3205.0,3.55758401]
[1736868806119,12.01265843,3205.1,3205.0,2.92338401]
[1736868806290,12.01265843,3205.1,3205.0,1.36332401]
[1736868806481,0.7719,3204.8,3203.3,0.7987]
[1736868806688,0.55,3203.7,3203.3,0.7987]
[1736868806987,3.0,3204.3,3203.3,0.7987]
[1736868807198,6.12081,3204.3,3203.3,0.7987]
[1736868807393,0.612002,3205.1,3203.3,0.7987]
[1736868807599,3.1198,3205.4,3203.1,0.7987]
[1736868807797,3.12054,3204.6,3203.3,3.92038]
[1736868807995,3.1198,3205.4,3203.2,0.392073]
[1736868807996,3.12041,3204.8,3203.5,0.7987]
[1736868808221,3.12041,3204.8,3203.5,3.92024]
[1736868808421,3.0,3204.7,3203.6,0.7987]
[1736868808591,0.55,3204.6,3203.6,0.7987]
[1736868808790,0.55,3204.6,3203.7,0.392024]
[1736868809108,3.12005,3205.1,3203.8,3.91999]
[1736868809308,0.64079309,3205.2,3203.8,0.7987]
[1736868809507,0.64079309,3205.2,3204.1,0.7987]
[1736868810387,0.55,3205.3,3204.4,0.7987]
[1736868810586,0.03900294,3205.2,3204.4,0.7987]
[1736868810812,0.55,3204.8,3204.4,0.7987]
[1736868811590,3.0,3205.2,3204.4,0.7987]
[1736868811993,0.311956,3205.6,3204.4,3.91933]
[1736868812198,0.64098073,3205.5,3204.5,1.190633]
[1736868812404,6.431496,3205.6,3204.5,1.190633]
[1736868812697,3.11939,3205.8,3204.6,3.91921]
[1736868813002,3.55,3205.7,3204.7,0.7987]
[1736868813370,3.0,3205.7,3204.7,3.91908]
[1736868813531,3.7503785,3206.2,3204.6,0.7987]
[1736868813697,1.00638635,3206.2,3205.2,3.11992]
[1736868813888,3.1186,3206.6,3205.4,0.7987]
[1736868814250,0.7719,3206.8,3205.4,0.7987]
[1736868814251,0.03899232,3206.5,3205.4,0.7987]
[1736868814413,3.11876,3206.4,3205.4,0.7987]
[1736868814751,0.55,3206.2,3205.4,0.7987]
[1736868815027,3.55,3205.9,3205.4,0.7987]
[1736868815236,3.66944,3205.7,3205.4,0.7987]
[1736868815859,1.41905036,3206.5,3205.4,0.7987]
[1736868816127,0.8019,3207.1,3205.5,0.7632]
[1736868816330,3.0,3206.6,3205.5,0.7632]
[1736868816516,3.41857,3206.6,3205.5,1.151484]
[1736868816694,0.8019,3207.1,3205.7,3.11939]
[1736868816898,3.11822,3207.0,3205.6,3.11949]
[1736868817099,3.11827,3206.9,3205.7,0.7632]
[1736868817305,3.78655642,3206.8,3205.7,0.7632]
[1736868817513,3.74756958,3206.8,3205.7,0.7632]
[1736868817804,3.66849,3206.7,3205.7,1.1903114]
[1736868818007,0.55,3206.7,3205.7,0.7632]
[1736868818324,3.55,3206.3,3205.7,0.7632]
[1736868818637,0.55,3206.5,3205.7,0.7632]
[1736868818861,0.62913958,3206.8,3205.7,0.7632]
[1736868819151,4.16894,3207.8,3206.1,3.11902]
[1736868819293,0.55,3207.2,3206.2,0.7632]
[1736868819495,1.18989197,3207.2,3206.2,0.7632]
[1736868819909,6.75869716,3207.3,3206.2,0.7632]
[1736868821001,3.11754,3207.7,3206.2,0.7632]
[1736868821002,3.11771,3207.5,3206.2,0.7632]
[1736868821208,0.55,3207.2,3206.3,0.7632]
[1736868821537,0.55,3207.1,3206.3,0.7632]
[1736868821743,3.66808,3207.1,3206.3,0.7632]
[1736868821937,0.03898488,3207.1,3206.3,0.7632]
[1736868822233,0.63739141,3207.4,3206.3,0.7632]
[1736868822441,4.16899,3207.8,3206.4,0.7632]
[1736868822600,4.16899,3207.8,3205.5,3.11963]
[1736868822601,0.63874586,3207.6,3206.2,0.7632]
[1736868822800,0.2496,3207.8,3206.2,0.7632]
[1736868823028,0.2496,3207.8,3206.4,0.7632]
[1736868823246,0.2496,3207.8,3206.5,3.11856]
[1736868823443,0.2496,3207.8,3206.9,3.11822]
[1736868823641,0.2496,3207.8,3206.3,3.0]
[1736868823642,0.2496,3207.8,3207.0,0.7632]
[1736868824138,0.2496,3207.8,3207.0,1.151356]
[1736868824307,0.55,3207.7,3207.0,0.7632]
[1736868824723,3.66758,3207.7,3207.0,0.7632]
[1736868825840,0.55,3207.7,3207.0,0.7632]
[1736868826444,0.55,3207.3,3207.0,0.7632]
[1736868826762,0.55,3207.2,3206.4,0.837]
[1736868826911,3.55,3207.4,3206.4,0.837]
[1736868827308,3.6678,3207.4,3206.4,0.837]
[1736868827737,0.55,3207.2,3206.4,0.837]
[1736868827924,0.55,3207.0,3206.4,0.837]
[1736868828103,0.55,3207.2,3206.4,0.837]
[1736868828311,0.55,3207.0,3206.4,0.837]
[1736868830457,3.55,3207.2,3206.4,0.837]
[1736868830829,0.55,3207.0,3206.4,0.837]
[1736868831069,0.55,3206.8,3206.4,0.837]
[1736868831268,3.6684,3206.8,3205.7,0.837]
[1736868831472,0.36684,3206.7,3205.8,0.837]
[1736868831673,0.62393781,3207.3,3206.2,0.837]
[1736868831967,0.32496,3207.7,3206.8,3.11828]
[1736868832193,3.11726,3208.0,3206.9,0.837]
[1736868832553,0.55,3207.7,3206.9,0.837]
[1736868832969,0.55,3207.5,3206.9,0.837]
[1736868833274,0.0389754,3207.6,3206.9,0.837]
[1736868833482,4.80478888,3207.5,3206.9,0.837]
[1736868833772,0.55,3207.1,3206.2,0.837]
[1736868834075,3.11803,3207.2,3206.2,0.837]
[1736868834076,0.03898273,3207.2,3206.2,0.837]
[1736868834371,0.03898273,3207.2,3206.2,3.95595]
[1736868834372,0.55,3207.1,3206.2,3.95595]
[1736868834958,0.55,3207.1,3206.2,0.837]
[1736868835273,0.55,3206.9,3206.2,0.837]
[1736868835645,0.55,3207.3,3206.2,3.95593]
[1736868835867,0.30389754,3207.5,3206.2,0.837]
[1736868836079,0.8201,3208.1,3206.3,0.837]
[1736868836287,0.55,3207.0,3206.3,0.837]
[1736868836600,0.95579283,3207.0,3206.3,0.837]
[1736868836780,0.916809,3207.0,3206.3,0.837]
[1736868837091,4.035019,3207.0,3206.3,0.837]
[1736868837460,0.916809,3207.0,3206.3,0.837]
[1736868838059,0.916809,3207.0,3204.3,3.10805507]
[1736868838060,3.11847,3206.7,3205.2,0.837]
[1736868838286,0.55,3206.6,3205.5,3.11963]
[1736868838465,0.55,3206.7,3205.5,0.837]
[1736868838790,3.93801,3207.3,3206.1,3.11901]
[1736868838995,3.93801,3207.3,3206.2,3.11893]
[1736868839298,0.55,3206.9,3206.1,3.11897]
[1736868840160,0.8201,3207.7,3205.9,0.9669]
[1736868840375,0.8201,3207.7,3206.1,0.9669]
[1736868840376,0.62978351,3207.5,3206.1,0.9669]
[1736868840576,6.95089134,3207.3,3206.1,0.9669]
[1736868840780,0.55,3207.0,3206.1,0.9669]
[1736868840981,1.54008351,3207.5,3206.1,0.9669]
[1736868841192,0.9103,3207.9,3206.1,3.95089134]
[1736868841396,0.55,3207.7,3206.7,3.11838]
[1736868841556,1.16205299,3207.7,3206.8,0.9669]
[1736868842090,0.55,3207.7,3206.8,0.9669]
[1736868842312,0.72099,3207.7,3206.8,0.9669]
[1736868842463,0.55,3207.5,3206.8,0.9669]
[1736868843006,0.17099,3207.7,3206.8,4.08525]
[1736868843312,0.55,3207.6,3206.8,4.08525]
[1736868843692,0.55,3207.6,3206.8,0.9669]
[1736868844043,0.2496,3207.8,3207.7,3.11749]
[1736868844197,0.2496,3207.8,3207.7,4.396139]
[1736868844750,0.2496,3207.8,3207.7,0.9669]
[1736868844869,0.55,3207.7,3207.1,0.9669]
[1736868845074,0.55,3207.5,3207.1,0.9669]
[1736868845508,0.2496,3207.8,3207.1,0.9669]
[1736868846002,3.66759,3207.6,3206.4,3.11868]
[1736868846205,0.37065624,3207.5,3206.4,3.11868]
[1736868846392,0.55,3207.4,3206.5,3.11863]
[1736868847313,0.55,3207.5,3206.3,0.9669]
[1736868847517,0.55,3207.5,3206.4,3.11876]